fUSD/lending_fUSD_20240408
["ID","MTS","AMOUNT","RATE_DAILY","PERIOD"]
[321864942,1712574643924,-817.437,0.00022146,2]
[321864943,1712574643933,-290.448,0.00022146,2]
[321864944,1712574643942,-1501.085,0.00022146,2]
[321864945,1712574643951,-397.0,0.00022146,2]
[321864946,1712574643960,-1140.0,0.00022146,2]
[321864947,1712574643970,-151.908,0.00022146,2]
[321864948,1712574643979,-3037.0,0.00022146,2]
[321864949,1712574643988,-2433.0,0.00022146,2]
[321864950,1712574643999,-279.865,0.00022146,2]
[321864951,1712574644008,-1633.0,0.00022146,2]
[321864952,1712574644018,-453.423,0.00022146,2]
[321864953,1712574644027,-354.0,0.00022146,2]
[321864954,1712574644036,-4793.0,0.00022146,2]
[321864956,1712574644046,-1313.0,0.00022146,2]
[321864958,1712574644055,-2461.0,0.00022146,2]
[321864960,1712574644064,-5707.0,0.00022146,2]
[321864962,1712574644074,-29441.982,0.00022146,2]
[321864964,1712574644083,-836.46618936,0.0002215,2]
[321864966,1712574644092,-196.50702679,0.000222,2]
[321864968,1712574644101,-170.55362327,0.000222,2]
[321864970,1712574644110,-517.34350694,0.000222,2]
[321864972,1712574644119,-156.33700529,0.000222,2]
[321864974,1712574644128,-683.17900719,0.000222,2]
[321864976,1712574644137,-252.16491418,0.000222,2]
[321864978,1712574644146,-1345180.16974512,0.00022228,2]
[321864980,1712574644156,-762.91,0.000223,2]
[321864982,1712574644165,-707.22,0.000223,2]
[321864983,1712574644174,-506.0,0.00022603,2]
[321864986,1712574644183,-13962.32615418,0.00022726,2]
[321864987,1712574644192,-800.0,0.00022776,2]
[321864989,1712574644201,-836.46618936,0.00022825,2]
[321864991,1712574644210,-40551.96381163,0.00023,2]
[321864993,1712574644220,-292.0,0.00023,6]
[321864995,1712574644229,-155.0,0.00023,2]
[321864997,1712574644238,-306.97533583,0.00023,2]
[321865000,1712574644247,-544.53851712,0.00023,2]
[321865001,1712574644257,-1850.0,0.00023,3]
[321865004,1712574644268,-1470.33982002,0.00023203,2]
[321865006,1712574644277,-202046.84027822,0.00023297,2]
[321865007,1712574644286,-360.0,0.00023409,2]
[321865008,1712574644295,-330.96,0.00023459,2]
[321865010,1712574644305,-836.46618936,0.000235,2]
[321865012,1712574644314,-13962.32615418,0.00023591,2]
[321865013,1712574644323,-800.0,0.00023614,2]
[321865015,1712574644332,-506.0,0.0002363,2]
[321865017,1712574644341,-200.0,0.0002371,2]
[321865018,1712574644350,-171.00391499,0.00023858,2]
[321865020,1712574644359,-224.56326927,0.00024,2]
[321865022,1712574644368,-544.15012456,0.00024,15]
[321865023,1712574644376,-153.7880492,0.00024068,2]
[321865025,1712574644386,-836.46618936,0.00024175,2]
[321865027,1712574644395,-206451.01665985,0.00024259,2]
[321865028,1712574644404,-2583.79,0.00024329,15]
[321865030,1712574644414,-707.22,0.000244,2]
[321865031,1712574644423,-2208.16129134,0.00024424,2]
[321865033,1712574644432,-2000.0,0.00024424,2]
[321865035,1712574644440,-200.0,0.00024424,2]
[321865036,1712574644449,-13962.32615418,0.00024456,2]
[321865038,1712574644458,-762.91,0.000245,2]
[321865040,1712574644467,-426.19,0.00024658,2]
[321865041,1712574644476,-506.0,0.00024658,2]
[321865043,1712574644485,-15625.0,0.00024666,2]
[321865045,1712574644494,-200.0,0.00024668,2]
[321865046,1712574644504,-200.0,0.0002467,2]
[321865048,1712574644516,-800.0,0.0002467,2]
[321865050,1712574644525,-500.0,0.0002467,2]
[321865051,1712574644535,-6922.45949902,0.00024682,2]
[321865053,1712574644544,-5120.71433477,0.000248,2]
[321865054,1712574644553,-836.46618936,0.0002485,2]
[321865056,1712574644563,-150.0,0.00024858,2]
[321865058,1712574644572,-481.0,0.000249,8]
[321865059,1712574644581,-27517.83927645,0.000249,2]
[321865061,1712574644590,-200.0,0.00024915,2]
[321865063,1712574644600,-8835.61690544,0.00025,4]
[321865065,1712574644609,-155.0,0.00025,2]
[321865067,1712574644618,-5000.0,0.00025,2]
[321865068,1712574644627,-265.23558975,0.00025,2]
[321865070,1712574644636,-155.0,0.00025,2]
[321865072,1712574644645,-4995.9525133,0.00025,2]
[321865073,1712574644654,-160.021,0.00025,2]
[321865075,1712574644663,-1900.0,0.00025,3]
[321865077,1712574644672,-412.26239919,0.00025,2]
[321865079,1712574644681,-209.479,0.00025146,2]
[321865081,1712574644691,-442.0,0.00025146,2]
[321865082,1712574644700,-200.0,0.00025164,2]
[321865084,1712574644709,-13962.32615418,0.0002532,2]
[321865086,1712574644718,-164.85658769,0.00025413,2]
[321865088,1712574644727,-200.0,0.00025416,2]
[321865089,1712574644736,-152.0,0.00025468,3]
[321865091,1712574644745,-517.34350693,0.0002549,2]
[321865093,1712574644754,-156.33700528,0.0002549,2]
[321865095,1712574644764,-683.17900718,0.0002549,2]
[321865096,1712574644774,-252.16491418,0.0002549,2]
[321865098,1712574644784,-836.46618936,0.00025525,2]
[321865100,1712574644794,-506.0,0.00025685,2]
[321865102,1712574644803,-330.96,0.00025723,2]
[321865104,1712574644813,-707.22,0.000258,2]
[321865105,1712574644823,-1000.0,0.000258,2]
[321865107,1712574644832,-150.0,0.00025858,2]
[321865109,1712574644842,-500000.0,0.00026,2]
[321865111,1712574644851,-762.91,0.00026,2]
[321865112,1712574644861,-360.0,0.0002601,2]
[321865114,1712574644870,-3000.0,0.00026027,4]
[321865116,1712574644879,-7268.0,0.00026102,2]
[321865118,1712574644888,-152.0,0.0002613,4]
[321865120,1712574644897,-13962.32615418,0.00026185,2]
[321865121,1712574644906,-836.46618936,0.000262,2]
[321865123,1712574644916,-800.0,0.00026238,2]
[321865125,1712574644926,-2500.0,0.000263,2]
[321865127,1712574644936,-1000.0,0.000263,2]
[321865128,1712574644945,-800.0,0.00026659,2]
[321865130,1712574644954,-153.7880492,0.00026661,2]
[321865132,1712574644963,-506.0,0.00026712,2]
[321865134,1712574644973,-152.0,0.00026792,5]
[321865135,1712574644981,-1500.0,0.000268,2]
[321865137,1712574644990,-1000.0,0.000268,2]
[321865139,1712574645000,-150.0,0.00026858,2]
[321865141,1712574645008,-836.46618936,0.00026875,2]
[321865143,1712574645019,-155.0,0.00027,4]
[321865144,1712574645028,-1950.0,0.00027,3]
[321865159,1712574645245,-600.0,0.00027,2]
[321865161,1712574645254,-13962.32615418,0.0002705,2]
[321865163,1712574645264,-2583.79,0.00027068,15]
[321865165,1712574645273,-1500.0,0.000273,2]
[321865167,1712574645282,-1000.0,0.000273,2]
[321865169,1712574645291,-2557.2247715,0.00027377,2]
[321865171,1712574645300,-150.0,0.00027393,2]
[321865173,1712574645309,-307.35979351,0.00027397,2]
[321865175,1712574645318,-200.0,0.00027397,2]
[321865177,1712574645327,-250.0,0.00027397,2]
[321865179,1712574645336,-707.22,0.000274,2]
[321865181,1712574645344,-150.0,0.00027416,2]
[321865183,1712574645353,-152.0,0.00027453,6]
[321865185,1712574645362,-150.0,0.00027502,2]
[321865187,1712574645371,-150.0,0.00027511,2]
[321865189,1712574645380,-836.46618936,0.0002755,2]
[321865191,1712574645389,-150.0,0.00027604,2]
[321865193,1712574645398,-510.0,0.0002774,2]
[321865196,1712574645407,-150.0,0.0002778,2]
[321865198,1712574645417,-1500.0,0.000278,2]
[321865200,1712574645426,-1000.0,0.000278,2]
[321865202,1712574645435,-150.0,0.00027831,2]
[321865204,1712574645444,-150.0,0.00027853,2]
[321865206,1712574645453,-150.0,0.00027858,2]
[321865208,1712574645462,-762.91,0.000279,2]
[321865210,1712574645472,-1500.0,0.00027909,2]
[321865212,1712574645481,-507.85578806,0.00027915,2]
[321865214,1712574645490,-13962.32615418,0.00027915,2]
[321865216,1712574645500,-330.96,0.00027987,2]
[321865219,1712574645513,-700.77742746,0.00028,2]
[321865222,1712574645522,-150.0,0.00028,30]
[321865224,1712574645531,-198.50623,0.00028,10]
[321865227,1712574645541,-200.0,0.00028,2]
[321865230,1712574645550,-2800.0,0.00028029,2]
[321865233,1712574645560,-600.0,0.00028029,2]
[321865236,1712574645570,-1500.0,0.0002808,2]
[321865239,1712574645579,-152.0,0.00028115,7]
[321865242,1712574645590,-442.0,0.00028146,2]
[321865245,1712574645599,-836.46618936,0.00028225,2]
[321865248,1712574645608,-1500.0,0.00028279,2]
[321865251,1712574645618,-1500.0,0.000283,2]
[321865254,1712574645627,-1000.0,0.000283,2]
[321865257,1712574645637,-150.0,0.00028308,2]
[321865260,1712574645646,-150.0,0.00028357,2]
[321865263,1712574645655,-150.0,0.00028432,2]
[321865266,1712574645665,-150.0,0.00028484,2]
[321865268,1712574645674,-151.0,0.00028499,7]
[321865270,1712574645684,-151.0,0.00028499,7]
[321865272,1712574645694,-151.0,0.00028499,7]
[321865274,1712574645704,-151.0,0.00028499,7]
[321865277,1712574645714,-151.0,0.00028499,7]
[321865279,1712574645724,-212.976834,0.00028499,7]
[321865280,1712574645734,-212.976834,0.00028499,7]
[321865283,1712574645743,-151.0,0.00028499,7]
[321865284,1712574645754,-151.0,0.00028499,7]
[321865286,1712574645764,-362.865514,0.00028499,7]
[321865289,1712574645774,-362.865514,0.00028499,7]
[321865291,1712574645783,-243729.43085778,0.00028499,2]
[321865293,1712574645798,-123040.90000001,0.00028499,2]
[321865308,1712574645927,-4014.16603168,0.00028499,2]
[321865317,1712574645995,-144805.09671918,0.00028499,2]
[321865319,1712574646004,-247805.85797946,0.000285,2]
[321865321,1712574646014,-155.0,0.000285,2]
[321865323,1712574646023,-305882.39294672,0.000285,2]
[321865325,1712574646032,-151.0,0.000285,7]
[321865327,1712574646041,-151.0,0.000285,7]
[321865329,1712574646050,-189.733527,0.000285,7]
[321865331,1712574646060,-189.733527,0.000285,7]
[321865333,1712574646069,-256.057361,0.000285,7]
[321865335,1712574646079,-151.0,0.000285,7]
[321865337,1712574646088,-256.057361,0.000285,7]
[321865339,1712574646097,-151.0,0.000285,7]
[321865342,1712574646107,-151.0,0.000285,7]
[321865344,1712574646117,-151.0,0.000285,7]
[321865346,1712574646126,-151.0,0.000285,7]
[321865348,1712574646135,-427.663464,0.000285,7]
[321865350,1712574646144,-1917.658736,0.000285,7]
[321865352,1712574646153,-1917.658736,0.000285,7]
[321865354,1712574646162,-151.0,0.000285,7]
[321865356,1712574646171,-151.0,0.000285,7]
[321865358,1712574646180,-354.772435,0.000285,7]
[321865360,1712574646188,-354.772435,0.000285,7]
[321865362,1712574646198,-151.0,0.000285,7]
[321865364,1712574646207,-151.0,0.000285,7]
[321865366,1712574646217,-151.0,0.000285,7]
[321865368,1712574646226,-151.0,0.000285,7]
[321865370,1712574646235,-151.0,0.000285,7]
[321865372,1712574646244,-151.0,0.000285,7]
[321865373,1712574646253,-151.0,0.000285,7]
[321865375,1712574646264,-151.0,0.000285,7]
[321865378,1712574646273,-151.0,0.000285,7]
[321865380,1712574646282,-151.0,0.000285,7]
[321865382,1712574646291,-151.0,0.000285,7]
[321865384,1712574646301,-151.0,0.000285,7]
[321865386,1712574646311,-151.0,0.000285,7]
[321865388,1712574646320,-308.014597,0.000285,7]
[321865390,1712574646329,-308.014597,0.000285,7]
[321865392,1712574646338,-151.0,0.000285,7]
[321865394,1712574646347,-151.0,0.000285,7]
[321865396,1712574646356,-337.404121,0.000285,7]
[321865398,1712574646365,-337.404121,0.000285,7]
[321865400,1712574646374,-375.299738,0.000285,7]
[321865402,1712574646383,-375.299738,0.000285,7]
[321865404,1712574646393,-151.0,0.000285,7]
[321865406,1712574646402,-151.0,0.000285,7]
[321865408,1712574646411,-151.0,0.000285,7]
[321865409,1712574646420,-1917.155289,0.000285,7]
[321865412,1712574646429,-1917.155289,0.000285,7]
[321865414,1712574646439,-151.0,0.000285,7]
[321865416,1712574646448,-151.0,0.000285,7]
[321865418,1712574646457,-151.0,0.000285,7]
[321865420,1712574646466,-287.422728,0.000285,7]
[321865422,1712574646475,-151.0,0.000285,7]
[321865424,1712574646484,-287.422728,0.000285,7]
[321865426,1712574646493,-307.400724,0.000285,7]
[321865428,1712574646503,-307.400724,0.000285,7]
[321865430,1712574646517,-165.910806,0.000285,7]
[321865432,1712574646525,-151.0,0.000285,7]
[321865434,1712574646535,-165.910806,0.000285,7]
[321865436,1712574646544,-151.0,0.000285,7]
[321865438,1712574646555,-151.0,0.000285,7]
[321865440,1712574646564,-151.0,0.000285,7]
[321865442,1712574646573,-491.019322,0.000285,7]
[321865444,1712574646582,-491.019322,0.000285,7]
[321865446,1712574646593,-151.0,0.000285,7]
[321865448,1712574646604,-151.0,0.000285,7]
[321865450,1712574646614,-151.0,0.000285,7]
[321865452,1712574646623,-151.0,0.000285,7]
[321865454,1712574646634,-151.0,0.000285,7]
[321865456,1712574646643,-151.0,0.000285,7]
[321865458,1712574646652,-318.844555,0.000285,7]
[321865460,1712574646661,-151.0,0.000285,7]
[321865462,1712574646670,-318.844555,0.000285,7]
[321865464,1712574646680,-208.623896,0.000285,7]
[321865466,1712574646689,-537.179818,0.000285,7]
[321865468,1712574646698,-537.179818,0.000285,7]
[321865470,1712574646707,-151.0,0.000285,7]
[321865472,1712574646716,-151.0,0.000285,7]
[321865473,1712574646725,-164.800618,0.000285,7]
[321865475,1712574646735,-164.800618,0.000285,7]
[321865476,1712574646744,-324.724611,0.000285,7]
[321865477,1712574646753,-151.0,0.000285,7]
[321865478,1712574646762,-324.724611,0.000285,7]
[321865479,1712574646771,-151.0,0.000285,7]
[321865480,1712574646780,-151.0,0.000285,7]
[321865481,1712574646791,-151.0,0.000285,7]
[321865483,1712574646807,-151.0,0.000285,7]
[321865485,1712574646816,-151.0,0.000285,7]
[321865487,1712574646825,-151.0,0.000285,7]
[321865489,1712574646834,-151.0,0.000285,7]
[321865491,1712574646844,-283.919225,0.000285,7]
[321865493,1712574646853,-283.919225,0.000285,7]
[321865495,1712574646862,-154.515527,0.000285,7]
[321865497,1712574646872,-151.0,0.000285,7]
[321865499,1712574646881,-154.515527,0.000285,7]
[321865501,1712574646889,-151.0,0.000285,7]
[321865503,1712574646899,-151.0,0.000285,7]
[321865505,1712574646907,-151.0,0.000285,7]
[321865507,1712574646917,-151.0,0.000285,7]
[321865509,1712574646926,-151.0,0.000285,7]
[321865511,1712574646935,-2906.896782,0.000285,7]
[321865513,1712574646944,-151.0,0.000285,7]
[321865515,1712574646953,-2906.896782,0.000285,7]
[321865517,1712574646962,-151.0,0.000285,7]
[321865520,1712574646971,-322.797553,0.000285,7]
[321865522,1712574646980,-322.797553,0.000285,7]
[321865524,1712574646990,-819.234627,0.000285,7]
[321865526,1712574646998,-151.0,0.000285,7]
[321865527,1712574647007,-819.234627,0.000285,7]
[321865529,1712574647018,-151.0,0.000285,7]
[321865531,1712574647027,-346.720732,0.000285,7]
[321865534,1712574647037,-151.0,0.000285,7]
[321865536,1712574647046,-346.720732,0.000285,7]
[321865538,1712574647055,-303.968573,0.000285,7]
[321865540,1712574647065,-303.968573,0.000285,7]
[321865542,1712574647074,-212.555612,0.000285,7]
[321865544,1712574647083,-212.555612,0.000285,7]
[321865546,1712574647093,-548.996698,0.000285,7]
[321865548,1712574647102,-151.0,0.000285,7]
[321865550,1712574647111,-548.996698,0.000285,7]
[321865552,1712574647120,-151.0,0.000285,7]
[321865554,1712574647129,-151.0,0.000285,7]
[321865556,1712574647138,-183.87582,0.000285,7]
[321865558,1712574647148,-174.504576,0.000285,7]
[321865560,1712574647157,-151.0,0.000285,7]
[321865562,1712574647166,-183.87582,0.000285,7]
[321865564,1712574647175,-151.0,0.000285,7]
[321865566,1712574647185,-151.0,0.000285,7]
[321865568,1712574647194,-152.896732,0.000285,7]
[321865589,1712574647374,-151.0,0.000285,7]
[321865591,1712574647385,-237.934553,0.000285,7]
[321865593,1712574647394,-237.934553,0.000285,7]
[321865595,1712574647404,-151.0,0.000285,7]
[321865597,1712574647413,-151.0,0.000285,7]
[321865599,1712574647423,-151.0,0.000285,7]
[321865601,1712574647432,-151.0,0.000285,7]
[321865603,1712574647440,-7324.643375,0.000285,7]
[321865605,1712574647450,-1500.0,0.00028528,2]
[321865607,1712574647460,-2800.0,0.00028577,2]
[321865609,1712574647469,-600.0,0.00028577,2]
[321865612,1712574647478,-150.0,0.00028599,2]
[321865614,1712574647487,-5962.69637219,0.000286,2]
[321865616,1712574647497,-150.0,0.00028602,2]
[321865618,1712574647507,-150.0,0.00028604,2]
[321865619,1712574647521,-150.0,0.00028605,2]
[321865622,1712574647531,-150.0,0.00028606,2]
[321865623,1712574647540,-1133.28974375,0.00028606,2]
[321865625,1712574647550,-150.0,0.00028609,2]
[321865628,1712574647559,-360.0,0.00028611,2]
[321865630,1712574647569,-150.0,0.00028613,2]
[321865632,1712574647579,-150.0,0.00028613,2]
[321865634,1712574647590,-150.0,0.00028614,2]
[321865636,1712574647599,-150.0,0.00028625,2]
[321865638,1712574647608,-150.0,0.00028631,2]
[321865640,1712574647618,-150.0,0.00028632,2]
[321865642,1712574647626,-150.0,0.00028633,2]
[321865644,1712574647636,-150.0,0.00028637,2]
[321865646,1712574647646,-150.0,0.0002864,2]
[321865648,1712574647655,-150.0,0.00028641,2]
[321865650,1712574647664,-150.0,0.00028643,2]
[321865652,1712574647673,-150.0,0.00028646,2]
[321865654,1712574647683,-150.0,0.00028646,2]
[321865656,1712574647691,-200.0,0.00028648,2]
[321865658,1712574647701,-800.0,0.00028648,8]
[321865660,1712574647710,-150.0,0.00028648,2]
[321865661,1712574647719,-150.0,0.00028649,2]
[321865663,1712574647728,-150.0,0.00028653,2]
[321865666,1712574647738,-300.0,0.0002866,2]
[321865668,1712574647747,-150.0,0.0002866,2]
[321865670,1712574647756,-150.0,0.00028667,2]
[321865672,1712574647766,-4797.61,0.0002867,2]
[321865674,1712574647775,-150.0,0.00028671,2]
[321865676,1712574647785,-150.0,0.00028673,2]
[321865678,1712574647794,-150.0,0.00028674,2]
[321865680,1712574647803,-150.0,0.00028676,2]
[321865682,1712574647812,-150.0,0.0002868,2]
[321865684,1712574647822,-150.0,0.00028686,2]
[321865686,1712574647831,-150.0,0.00028696,2]
[321865688,1712574647840,-150.0,0.00028698,2]
[321865690,1712574647849,-150.0,0.00028701,2]
[321865692,1712574647858,-150.0,0.00028705,2]
[321865694,1712574647868,-150.0,0.00028707,2]
[321865696,1712574647877,-150.0,0.00028711,2]
[321865698,1712574647885,-150.0,0.00028713,2]
[321865700,1712574647894,-150.0,0.00028718,2]
[321865702,1712574647903,-150.0,0.0002872,2]
[321865704,1712574647912,-150.0,0.00028724,2]
[321865706,1712574647922,-150.0,0.00028725,2]
[321865708,1712574647930,-150.0,0.00028729,2]
[321865710,1712574647940,-150.0,0.00028731,2]
[321865712,1712574647949,-150.0,0.00028731,2]
[321865714,1712574647958,-150.0,0.00028731,2]
[321865716,1712574647967,-150.0,0.00028731,2]
[321865718,1712574647976,-150.0,0.00028734,2]
[321865720,1712574647985,-150.0,0.00028738,2]
[321865722,1712574647994,-150.0,0.00028745,2]
[321865724,1712574648004,-1500.0,0.00028746,2]
[321865726,1712574648014,-150.0,0.00028747,2]
[321865728,1712574648024,-150.0,0.00028753,2]
[321865730,1712574648033,-150.0,0.00028754,2]
[321865732,1712574648042,-150.0,0.00028755,2]
[321865734,1712574648050,-1500.0,0.00028755,2]
[321865736,1712574648059,-150.0,0.00028764,2]
[321865738,1712574648068,-150.0,0.00028764,2]
[321865740,1712574648077,-150.0,0.00028773,2]
[321865742,1712574648086,-150.0,0.00028773,2]
[321865744,1712574648095,-150.0,0.00028774,2]
[321865746,1712574648104,-152.0,0.00028776,8]
[321865748,1712574648113,-150.0,0.00028777,2]
[321865750,1712574648123,-150.0,0.00028778,2]
[321865752,1712574648131,-151.0,0.0002878,7]
[321865754,1712574648140,-151.0,0.0002878,7]
[321865756,1712574648149,-151.0,0.0002878,7]
[321865758,1712574648160,-151.0,0.0002878,7]
[321865760,1712574648169,-151.0,0.0002878,7]
[321865762,1712574648179,-212.976834,0.0002878,7]
[321865764,1712574648187,-212.976834,0.0002878,7]
[321865766,1712574648196,-151.0,0.0002878,7]
[321865768,1712574648205,-151.0,0.0002878,7]
[321865770,1712574648214,-362.865514,0.0002878,7]
[321865771,1712574648223,-362.865514,0.0002878,7]
[321865773,1712574648232,-151.0,0.0002878,7]
[321865775,1712574648241,-151.0,0.0002878,7]
[321865777,1712574648250,-151.0,0.0002878,7]
[321865780,1712574648261,-151.0,0.0002878,7]
[321865781,1712574648270,-151.771008,0.0002878,7]
[321865783,1712574648279,-151.0,0.0002878,7]
[321865784,1712574648288,-151.0,0.0002878,7]
[321865785,1712574648297,-151.0,0.0002878,7]
[321865786,1712574648306,-151.0,0.0002878,7]
[321865787,1712574648315,-507.85578806,0.0002878,2]
[321865788,1712574648325,-196.50702679,0.0002878,2]
[321865789,1712574648334,-1232.18007994,0.0002878,2]
[321865791,1712574648343,-1232.18007994,0.0002878,2]
[321865793,1712574648352,-1232.18007994,0.0002878,2]
[321865795,1712574648361,-1232.18007994,0.0002878,2]
[321865797,1712574648371,-1232.18007994,0.0002878,2]
[321865799,1712574648380,-1232.18007994,0.0002878,2]
[321865801,1712574648389,-1232.18007994,0.0002878,2]
[321865803,1712574648403,-1232.18007994,0.0002878,2]
[321865807,1712574648424,-1232.18007994,0.0002878,2]
[321865810,1712574648441,-1232.18007994,0.0002878,2]
[321865813,1712574648460,-1232.18007994,0.0002878,2]
[321865816,1712574648478,-1232.18007994,0.0002878,2]
[321865819,1712574648494,-1232.18007994,0.0002878,2]
[321865821,1712574648516,-1232.18007994,0.0002878,2]
[321865824,1712574648533,-1232.18007994,0.0002878,2]
[321865827,1712574648552,-1232.18007994,0.0002878,2]
[321865830,1712574648569,-1232.18007994,0.0002878,2]
[321865833,1712574648585,-1232.18007994,0.0002878,2]
[321865836,1712574648603,-1232.18007994,0.0002878,2]
[321865839,1712574648623,-1232.68,0.0002878,2]
[321865842,1712574648638,-4928.79531976,0.0002878,2]
[321865844,1712574648651,-4928.79531976,0.0002878,2]
[321865847,1712574648666,-4928.79531976,0.0002878,2]
[321865849,1712574648683,-935.96310017,0.0002878,2]
[321865852,1712574648696,-13962.32615418,0.0002878,2]
[321865854,1712574648710,-935.96310017,0.0002878,2]
[321865857,1712574648725,-935.96310017,0.0002878,2]
[321865860,1712574648745,-935.96310017,0.0002878,2]
[321865863,1712574648760,-935.96310017,0.0002878,2]
[321865866,1712574648774,-935.96310017,0.0002878,2]
[321865868,1712574648790,-935.96310017,0.0002878,2]
[321865871,1712574648803,-935.96310017,0.0002878,2]
[321865873,1712574648817,-935.96310017,0.0002878,2]
[321865876,1712574648832,-935.96310017,0.0002878,2]
[321865879,1712574648846,-935.96310017,0.0002878,2]
[321865881,1712574648860,-935.96310017,0.0002878,2]
[321865884,1712574648874,-935.96310017,0.0002878,2]
[321865886,1712574648889,-935.96310017,0.0002878,2]
[321865889,1712574648904,-935.96310017,0.0002878,2]
[321865892,1712574648919,-517.34350693,0.0002878,2]
[321865894,1712574648935,-935.96310017,0.0002878,2]
[321865897,1712574648949,-935.96310017,0.0002878,2]
[321865900,1712574648964,-935.96310017,0.0002878,2]
[321865902,1712574648978,-935.96310017,0.0002878,2]
[321865905,1712574648992,-936.46,0.0002878,2]
[321865907,1712574649006,-3743.92740069,0.0002878,2]
[321865910,1712574649023,-3743.92740069,0.0002878,2]
[321865912,1712574649037,-3743.92740069,0.0002878,2]
[321865915,1712574649053,-179.96411438,0.0002878,2]
[321865918,1712574649067,-179.96411438,0.0002878,2]
[321865920,1712574649081,-179.96411438,0.0002878,2]
[321865923,1712574649096,-179.96411438,0.0002878,2]
[321865926,1712574649110,-179.96411438,0.0002878,2]
[321865928,1712574649124,-179.96411438,0.0002878,2]
[321865931,1712574649138,-179.96411438,0.0002878,2]
[321865933,1712574649153,-179.96411438,0.0002878,2]
[321865936,1712574649167,-179.96411438,0.0002878,2]
[321865939,1712574649182,-179.96411438,0.0002878,2]
[321865941,1712574649195,-179.96411438,0.0002878,2]
[321865944,1712574649209,-179.96411438,0.0002878,2]
[321865946,1712574649224,-179.96411438,0.0002878,2]
[321865949,1712574649238,-179.96411438,0.0002878,2]
[321865952,1712574649253,-179.96411438,0.0002878,2]
[321865954,1712574649268,-179.96411438,0.0002878,2]
[321865957,1712574649283,-179.96411438,0.0002878,2]
[321865959,1712574649297,-179.96411438,0.0002878,2]
[321865962,1712574649311,-179.96411438,0.0002878,2]
[321865964,1712574649325,-180.46,0.0002878,2]
[321865967,1712574649340,-719.93145753,0.0002878,2]
[321865970,1712574649354,-719.93145753,0.0002878,2]
[321865972,1712574649368,-719.93145753,0.0002878,2]
[321865975,1712574649382,-156.33700528,0.0002878,2]
[321865977,1712574649396,-683.17900718,0.0002878,2]
[321865980,1712574649411,-252.16491418,0.0002878,2]
[321865983,1712574649426,-150.0,0.00028786,2]
[321865985,1712574649440,-150.0,0.00028788,2]
[321865988,1712574649454,-150.0,0.00028791,2]
[321865990,1712574649469,-150.0,0.00028792,2]
[321865993,1712574649483,-150.0,0.000288,2]
[321865996,1712574649498,-481.0,0.000288,13]
[321865998,1712574649516,-394.0,0.000288,2]
[321866001,1712574649530,-394.0,0.000288,2]
[321866003,1712574649545,-481.0,0.000288,13]
[321866006,1712574649560,-707.22,0.000288,2]
[321866008,1712574649574,-187.0,0.000288,13]
[321866011,1712574649589,-150.0,0.000288,2]
[321866013,1712574649604,-1500.0,0.000288,2]
[321866016,1712574649618,-1000.0,0.000288,2]